bitfinex-derivatives/quotes_SOLF0:USTF0_20251025
["timestamp","ask_amount","ask_price","bid_price","bid_amount"]
[1761357482693,204.01609207,193.76,193.7,2.86]
[1761357491300,204.01609207,193.76,193.67,9.11647633]
[1761357491603,204.01609207,193.76,193.67,2.74]
[1761357491989,208.66049207,193.76,193.68,4.646]
[1761357495005,1.50063563,193.72,193.66,6.37647633]
[1761357495300,1.50063563,193.7,193.64,2.74]
[1761357495500,62.18,193.69,193.63,160.44061945]
[1761357496007,1.50063563,193.68,193.63,98.26061945]
[1761357496899,1.50063563,193.68,193.63,101.00061945]
[1761357501706,1.50063563,193.68,193.64,2.74]
[1761357503612,62.18,193.69,193.64,2.74]
[1761357504824,62.18,193.69,193.63,1.50063563]
[1761357507026,62.18,193.69,193.63,4.24063563]
[1761357512629,66.8262,193.69,193.61,2.74]
[1761357512818,68.32683563,193.69,193.62,1.50063563]
[1761357513225,68.32683563,193.69,193.61,2.74]
[1761357516626,63.68063563,193.69,193.61,2.74]
[1761357516832,4.6464,193.68,193.61,2.74]
[1761357518028,1.50063563,193.67,193.61,2.74]
[1761357518727,1.50063563,193.65,193.6,0.89818041]
[1761357519329,6.14773563,193.65,193.58,4.31063563]
[1761357519522,6.14773563,193.65,193.58,5.20952364]
[1761357522037,4.6473,193.64,193.58,5.20952364]
[1761357522627,4.6473,193.64,193.58,0.89888801]
[1761357523943,4.6473,193.64,193.58,3.70888801]
[1761357532148,4.6473,193.64,193.58,5.20952364]
[1761357533052,1.50063563,193.65,193.59,2.81]
[1761357534851,4.6467,193.66,193.6,1.50063563]
[1761357535445,4.6467,193.66,193.62,1.50063563]
[1761357535846,4.6467,193.66,193.62,4.31063563]
[1761357536048,4.6467,193.66,193.62,1.50063563]
[1761357536249,4.6467,193.66,193.63,2.81]
[1761357541157,4.6462,193.68,193.63,2.81]
[1761357542458,141.11065883,193.68,193.63,2.81]
[1761357554361,136.46445883,193.68,193.63,2.81]
[1761357555863,136.46445883,193.68,193.64,2.63]
[1761357556369,62.2,193.73,193.68,2.63]
[1761357571481,62.2,193.73,193.67,4.6463]
[1761357572582,62.2,193.73,193.67,7.2763]
[1761357573288,62.2,193.73,193.68,2.63]
[1761357575593,62.2,193.73,193.69,2.63]
[1761357577497,62.2,193.73,193.7,2.63]
[1761357577696,2.34636983,193.77,193.7,2.63]
[1761357577896,140.3973557,193.77,193.7,2.63]
[1761357578092,140.3973557,193.77,193.71,4.6453]
[1761357578291,140.3973557,193.77,193.72,2.77]
[1761357578602,140.3973557,193.77,193.72,7.4151]
[1761357578901,140.3973557,193.77,193.73,2.77]
[1761357579296,140.3973557,193.77,193.72,7.4151]
[1761357579595,140.3973557,193.77,193.72,4.6451]
[1761357579800,140.3973557,193.77,193.73,2.77]
[1761357582503,138.05098587,193.77,193.73,2.77]
[1761357582704,138.05098587,193.77,193.74,2.77]
[1761357589908,138.05098587,193.77,193.74,7.4146]
[1761357590211,138.05098587,193.77,193.75,2.77]
[1761357590512,64.52636983,193.81,193.75,2.77]
[1761357594615,64.52636983,193.81,193.75,7.4143]
[1761357594827,64.52636983,193.81,193.75,4.6443]
[1761357601215,64.50636983,193.81,193.75,4.6443]
[1761357601415,64.50636983,193.81,193.75,7.2243]
[1761357602426,64.50636983,193.81,193.75,4.6443]
[1761357603017,2.34636983,193.78,193.67,6.37647633]
[1761357603214,2.34636983,193.74,193.67,2.58]
[1761357603619,2.34636983,193.74,193.7,4.6455]
[1761357603823,2.34636983,193.74,193.71,2.58]
[1761357604122,62.16,193.77,193.71,2.58]
[1761357604419,2.34636983,193.74,193.71,2.58]
[1761357604818,1.50102278,193.72,193.71,2.58]
[1761357605218,1.50102278,193.72,193.7,4.6455]
[1761357605413,1.50102278,193.72,193.7,7.2255]
[1761357607018,1.50102278,193.72,193.7,4.6455]
[1761357607519,1.50102278,193.72,193.7,7.2255]
[1761357607824,62.16,193.77,193.72,4.6451]
[1761357608025,1.50102278,193.75,193.72,7.4351]
[1761357608522,1.50102278,193.75,193.73,2.79]
[1761357609318,63.66102278,193.77,193.75,2.79]
[1761357610019,63.66102278,193.77,193.74,4.6447]
[1761357610222,1.50102278,193.75,193.74,4.6447]
[1761357614924,1.50102278,193.75,193.72,7.4351]
[1761357615326,1.50102278,193.75,193.72,4.6451]
[1761357615529,1.50102278,193.75,193.73,2.79]
[1761357617726,1.50102278,193.75,193.74,2.79]
[1761357618326,63.66102278,193.77,193.74,2.79]
[1761357618632,63.66102278,193.77,193.75,2.79]
[1761357620036,63.66102278,193.77,193.74,4.6446]
[1761357621534,1.50102278,193.75,193.74,4.6446]
[1761357621936,1.50102278,193.75,193.72,7.4351]
[1761357622735,1.50102278,193.75,193.72,4.6451]
[1761357623034,1.50102278,193.73,193.72,4.6451]
[1761357623734,1.50102278,193.73,193.72,7.4351]
[1761357627933,1.50102278,193.75,193.72,4.6451]
[1761357628239,1.50102278,193.75,193.73,2.79]
[1761357629738,62.16,193.77,193.74,2.79]
[1761357630035,63.66102278,193.77,193.74,2.79]
[1761357630233,1.50102278,193.77,193.74,2.79]
[1761357630940,1.50102278,193.77,193.74,7.4346]
[1761357631244,1.50102278,193.77,193.75,2.79]
[1761357633536,149.8720355,193.79,193.75,2.79]
[1761357633738,1.50102278,193.77,193.75,2.79]
[1761357636444,1.50102278,193.78,193.75,2.79]
[1761357637332,151.37305828,193.79,193.75,2.79]
[1761357640141,149.8720355,193.79,193.75,2.79]
[1761357640354,151.37305828,193.79,193.75,2.79]
[1761357643544,149.8720355,193.79,193.75,2.79]
[1761357643753,151.37305828,193.79,193.75,2.79]
[1761357646143,1.50102278,193.77,193.73,7.44396958]
[1761357646642,1.50102278,193.77,193.73,4.80396958]
[1761357646842,1.50102278,193.77,193.74,2.64]
[1761357661358,62.16,193.78,193.74,2.64]
[1761357661558,1.50102278,193.77,193.74,2.64]
[1761357663951,1.50102278,193.77,193.73,4.80396958]
[1761357663952,1.50102278,193.75,193.72,7.62396958]
[1761357665954,1.50102278,193.75,193.73,2.82]
[1761357666559,1.50102278,193.75,193.71,4.80396958]
[1761357666762,1.50102278,193.75,193.7,2.82]
[1761357666763,2.34556693,193.74,193.7,2.82]
[1761357668866,62.16,193.75,193.7,2.82]
[1761357669261,62.16,193.75,193.71,2.66]
[1761357669467,214.37760243,193.79,193.72,2.66]
[1761357670064,214.37760243,193.79,193.73,2.66]
[1761357672063,214.37760243,193.79,193.73,7.3048]
[1761357672570,214.37760243,193.79,193.73,4.6448]
[1761357672769,214.37760243,193.79,193.74,2.66]
[1761357676765,214.37760243,193.79,193.73,4.6448]
[1761357677172,214.37760243,193.79,193.72,7.46396958]
[1761357678274,214.37760243,193.79,193.72,2.66]
[1761357680772,4.8266331,193.82,193.72,2.66]
[1761357681075,15.49,193.93,193.78,2.66]
[1761357681076,4.8266331,193.88,193.78,2.66]
[1761357681275,62.16,193.87,193.78,2.66]
[1761357681674,62.16,193.87,193.79,2.66]
[1761357682065,66.8019,193.87,193.79,2.66]
[1761357683076,62.16,193.87,193.77,4.80396958]
[1761357683386,62.16,193.87,193.78,2.66]
[1761357684072,62.16,193.87,193.77,4.80396958]
[1761357684073,62.16,193.87,193.81,2.66]
[1761357688682,62.16,193.87,193.82,2.66]
[1761357688879,62.16,193.87,193.82,7.45946746]
[1761357689085,62.16,193.87,193.83,2.66]
[1761357689284,62.16,193.87,193.82,4.6427]
[1761357689486,62.16,193.87,193.82,7.3027]
[1761357689688,62.16,193.87,193.82,4.6427]
[1761357689887,62.16,193.87,193.83,2.66]
[1761357690886,62.16,193.87,193.8,4.6433]
[1761357691082,2.34556693,193.85,193.79,2.66]
[1761357692183,2.34556693,193.85,193.76,4.79946746]
[1761357692385,2.34556693,193.85,193.76,2.66]
[1761357693092,2.34556693,193.82,193.76,2.66]
[1761357703898,2.34556693,193.79,193.71,66.95946746]
[1761357704099,2.34556693,193.75,193.71,2.61]
[1761357704406,2.34556693,193.72,193.69,2.61]
[1761357707399,4.6447,193.75,193.69,2.61]
[1761357707400,2.34556693,193.75,193.69,2.61]
[1761357718809,2.34556693,193.75,193.66,2.87]
[1761357720012,4.645,193.74,193.66,2.87]
[1761357720511,2.34556693,193.72,193.66,2.87]
[1761357721610,4.6456,193.71,193.66,2.87]
[1761357722297,4.6449,193.74,193.66,2.87]
[1761357722498,205.74153598,193.75,193.66,2.87]
[1761357724010,4.6452,193.73,193.66,2.87]
[1761357728410,148.12603598,193.75,193.67,2.67]
[1761357728614,143.48153598,193.75,193.67,5.01556693]
[1761357728807,143.48153598,193.75,193.71,2.67]
[1761357740114,62.26,193.78,193.72,1.50026865]
[1761357740419,62.26,193.78,193.73,2.67]
[1761357741011,1.50026865,193.81,193.73,2.67]
[1761357742119,1.50026865,193.81,193.75,2.67]
[1761357742322,62.26,193.82,193.75,2.67]
[1761357744126,62.26,193.82,193.76,7.3141]
[1761357745226,63.76026865,193.83,193.77,2.67]
[1761357746127,62.26,193.83,193.77,2.67]
[1761357746327,1.50026865,193.82,193.77,2.67]
[1761357746831,1.50026865,193.82,193.76,4.6441]
[1761357747416,1.50026865,193.82,193.76,7.3141]
[1761357750328,63.76026865,193.83,193.77,2.67]
[1761357750630,62.26,193.83,193.77,2.67]
[1761357750831,1.50026865,193.82,193.77,2.67]
[1761357756034,1.50026865,193.82,193.78,2.67]
[1761357762637,1.50026865,193.82,193.79,2.86]
[1761357767639,1.50026865,193.84,193.8,2.86]
[1761357768731,62.2,193.85,193.8,2.86]
[1761357768935,1.50026865,193.84,193.8,4.6433]
[1761357769132,1.50026865,193.84,193.81,2.86]
[1761357774139,62.2,193.85,193.81,2.86]
[1761357775847,62.2,193.85,193.77,7.64725696]
[1761357775848,1.50026865,193.82,193.77,7.64725696]
[1761357776051,1.50026865,193.8,193.78,2.86]
[1761357776250,1.50026865,193.82,193.78,2.86]
[1761357776748,1.50026865,193.82,193.79,2.86]
[1761357780152,62.2,193.85,193.79,2.86]
[1761357780353,1.50026865,193.83,193.79,2.86]
[1761357786455,62.2,193.85,193.78,9.43085696]
[1761357786456,1.50026865,193.81,193.78,4.6436]
[1761357786748,1.50026865,193.81,193.76,2.58]
[1761357786749,1.50026865,193.79,193.76,4.78725696]
[1761357786952,1.50026865,193.77,193.75,9.43155696]
[1761357787356,1.50026865,193.77,193.76,2.58]
[1761357790657,64.52377943,193.81,193.76,2.58]
[1761357804764,62.18,193.81,193.76,2.58]
[1761357808170,62.18,193.81,193.74,4.78725696]
[1761357808381,62.18,193.81,193.73,7.4849]
[1761357808382,62.18,193.81,193.73,12.27215696]
[1761357808968,66.8232,193.81,193.73,12.27215696]
[1761357809668,66.8232,193.81,193.74,2.84]
[1761357811968,62.18,193.81,193.74,2.84]
[1761357813074,62.18,193.81,193.73,4.78725696]
[1761357813774,2.34377943,193.8,193.72,4.78725696]
[1761357814973,6.98727943,193.8,193.73,2.84]
[1761357819179,6.98727943,193.8,193.73,7.62725696]
[1761357819475,6.98727943,193.8,193.73,2.84]
[1761357820176,6.98727943,193.8,193.73,7.62725696]
[1761357821772,15.0,193.86,193.74,4.78725696]
[1761357821773,4.6429,193.82,193.74,4.78725696]
[1761357821977,4.6429,193.82,193.75,2.77]
[1761357822376,4.6429,193.82,193.76,2.77]
[1761357829977,4.6429,193.82,193.76,4.8091404]
[1761357830174,66.8029,193.82,193.77,2.77]
[1761357832179,4.6433,193.81,193.76,4.8091404]
[1761357832366,4.6433,193.81,193.75,4.8091404]
[1761357832570,62.16,193.82,193.75,4.8091404]
[1761357833884,62.16,193.82,193.75,7.5791404]
[1761357834181,4.6435,193.8,193.76,2.77]
[1761357834582,66.8035,193.8,193.76,2.77]
[1761357836079,66.8035,193.8,193.75,7.5791404]
[1761357836382,66.8035,193.8,193.75,2.77]
[1761357838788,66.8035,193.8,193.75,7.5791404]
[1761357839083,66.8035,193.8,193.76,2.63]
[1761357839982,66.8035,193.8,193.76,7.4391404]
[1761357840383,62.16,193.8,193.77,2.63]
[1761357842390,4.6429,193.82,193.77,2.63]
[1761357842581,62.16,193.81,193.77,2.63]
[1761357843893,62.16,193.81,193.78,2.63]
[1761357846388,62.16,193.81,193.79,2.63]
[1761357848088,62.16,193.85,193.79,2.63]
[1761357848691,62.16,193.85,193.79,7.4391404]
[1761357848990,62.16,193.85,193.8,2.83]
[1761357854491,62.16,193.85,193.75,6.37647633]
[1761357854492,1.49909789,193.84,193.77,13.78213829]
[1761357856097,1.49909789,193.84,193.78,2.83]
[1761357858198,62.16,193.85,193.79,2.83]
[1761357858399,138.57936663,193.87,193.81,1.49909789]
[1761357858593,138.57936663,193.87,193.86,2.83]
[1761357858594,132.41528691,193.87,193.86,2.83]
[1761357869907,1.49909789,193.88,193.86,2.83]
[1761357871802,1.49909789,193.88,193.83,2.83]
[1761357872006,1.49909789,193.84,193.82,4.6427]
[1761357872706,1.49909789,193.84,193.8,7.4732]
[1761357872904,1.49909789,193.81,193.8,7.4732]
[1761357873097,1.49909789,193.81,193.8,2.83]
[1761357873299,1.49909789,193.81,193.78,2.83]
[1761357873505,1.49909789,193.79,193.78,2.83]
[1761357885621,1.49909789,193.82,193.78,2.83]
[1761357900734,1.49909789,193.8,193.76,2.67]
[1761357900930,1.49909789,193.78,193.75,2.67]
[1761357901232,1.49909789,193.78,193.72,64.83]
[1761357901535,1.49909789,193.78,193.73,2.67]
[1761357902427,1.49909789,193.78,193.72,62.16]
[1761357902730,1.49909789,193.78,193.72,64.83]
[1761357907036,1.49909789,193.78,193.72,2.67]
[1761357910843,4.6435,193.8,193.72,2.67]
[1761357912041,2.34413359,193.81,193.72,2.67]
[1761357912042,4.6437,193.79,193.72,2.67]
[1761357912445,6.98813359,193.78,193.69,7.3659]
[1761357912945,2.34413359,193.78,193.69,7.3659]
[1761357913939,4.6442,193.77,193.69,7.3659]
[1761357914537,4.6442,193.77,193.7,2.72]
[1761357914739,7.15391912,193.85,193.71,2.72]
[1761357914942,7.15391912,193.85,193.73,2.34413359]
[1761357914943,62.18,193.84,193.73,2.34413359]
[1761357915242,62.18,193.84,193.74,4.6447]
[1761357915543,62.18,193.84,193.75,2.72]
[1761357918044,4.6426,193.83,193.75,2.72]
[1761357919448,4.6431,193.81,193.73,4.79885746]
[1761357919742,4.6431,193.81,193.72,7.51885746]
[1761357920642,4.6431,193.81,193.72,2.72]
[1761357921043,4.6435,193.8,193.72,2.72]
[1761357922845,2.34413359,193.79,193.72,2.72]
[1761357924650,6.98793359,193.79,193.72,2.72]
[1761357934468,4.6438,193.79,193.72,2.72]
[1761357936569,4.6445,193.76,193.7,4.79885746]
[1761357936864,4.6445,193.76,193.7,2.72]
[1761357937760,4.6445,193.76,193.69,4.79885746]
[1761357937761,2.34413359,193.74,193.66,7.49885746]
[1761357938968,4.6452,193.73,193.66,7.49885746]
[1761357939665,4.6452,193.73,193.66,2.7]
[1761357939865,4.6452,193.73,193.66,7.50851269]
[1761357941275,4.6452,193.73,193.67,2.7]
[1761357941671,4.6452,193.73,193.66,4.80851269]
[1761357942168,4.6452,193.73,193.66,7.50851269]
[1761357942373,4.6452,193.73,193.67,4.80851269]
[1761357942576,4.6452,193.73,193.67,7.50851269]
[1761357943272,4.6452,193.73,193.67,2.7]
[1761357943468,4.6452,193.73,193.67,7.50851269]
[1761357946479,4.6452,193.73,193.67,2.7]
[1761357946777,4.6452,193.73,193.67,7.50851269]
[1761357947472,4.6452,193.73,193.67,2.7]
[1761357949978,4.6452,193.73,193.67,7.50851269]
[1761357952282,4.6452,193.73,193.67,2.7]
[1761357953195,4.6446,193.75,193.69,2.7]
[1761357955176,62.22,193.76,193.69,2.7]
[1761357955177,4.6449,193.74,193.69,2.7]
[1761357960391,66.8649,193.74,193.69,2.7]
[1761357961500,62.22,193.74,193.66,7.65995181]
[1761357961785,64.56413359,193.74,193.65,8.55817859]
[1761357961989,64.56413359,193.74,193.65,3.74822678]
[1761357962287,64.56413359,193.74,193.65,8.55817859]
[1761357962488,64.56413359,193.74,193.65,3.74822678]
[1761357963192,4.6457,193.71,193.65,3.74822678]
[1761357963390,4.6457,193.71,193.65,8.55817859]
[1761357964292,4.6457,193.71,193.66,2.85]
[1761357965389,6.98983359,193.71,193.66,2.85]
[1761357965990,6.98983359,193.71,193.61,6.37647633]
[1761357965991,2.34413359,193.68,193.62,2.85]
[1761357966296,64.58413359,193.68,193.59,8.55868893]
[1761357966703,64.58413359,193.68,193.6,2.85]
[1761357966993,4.6469,193.66,193.6,2.85]
[1761357967791,62.26,193.68,193.6,2.85]
[1761357968097,62.26,193.68,193.62,2.64]
[1761357969289,62.26,193.68,193.62,4.6476]
[1761357969496,62.26,193.68,193.63,2.64]
[1761357970091,4.6459,193.7,193.63,2.64]
[1761357970396,66.9059,193.7,193.63,2.64]
[1761357972798,1.50178392,193.69,193.63,2.64]
[1761357977302,66.9059,193.7,193.63,4.14178392]
[1761357977701,66.9059,193.7,193.63,1.50178392]
[1761357978000,66.9059,193.7,193.64,2.64]
[1761357982505,4.6459,193.7,193.64,2.64]
[1761357982705,62.24,193.69,193.64,2.64]
[1761357992810,63.74178392,193.69,193.64,2.64]
[1761357997418,63.74178392,193.69,193.64,4.647]
[1761357997612,63.74178392,193.69,193.65,2.64]
[1761358002918,6.14738392,193.71,193.65,7.2868]
[1761358003124,62.22,193.68,193.65,7.2868]
[1761358005028,62.22,193.68,193.66,2.76]
[1761358007323,140.7183113,193.73,193.66,2.76]
[1761358007527,62.22,193.72,193.66,2.76]
[1761358007724,129.75235463,193.73,193.67,6.31173573]
[1761358007926,62.22,193.72,193.68,2.76]
[1761358008930,63.72178392,193.72,193.66,4.80995181]
[1761358009127,63.72178392,193.72,193.65,7.56995181]
[1761358009625,1.50178392,193.7,193.65,12.21665181]
[1761358009830,1.50178392,193.7,193.65,9.45665181]
[1761358012819,1.50178392,193.7,193.65,4.6467]
[1761358013520,1.50178392,193.7,193.64,4.80995181]
[1761358014825,1.50178392,193.7,193.64,7.56995181]
[1761358017432,1.50178392,193.7,193.65,2.76]
[1761358020133,4.6457,193.71,193.65,2.76]
[1761358020335,1.50178392,193.7,193.65,2.76]
[1761358023135,1.50178392,193.66,193.63,4.80995181]
[1761358023331,1.50178392,193.66,193.59,0.89873712]
[1761358023332,62.22,193.65,193.62,7.54995181]
[1761358024033,62.22,193.65,193.63,2.74]
[1761358030140,62.22,193.65,193.61,7.38995181]
[1761358030335,62.22,193.65,193.62,2.58]
[1761358033142,62.22,193.65,193.63,2.58]
[1761358034843,62.22,193.65,193.62,2.58]
[1761358042652,62.22,193.65,193.59,3.47873712]
[1761358044755,62.22,193.65,193.6,2.58]
[1761358055865,62.22,193.65,193.61,2.58]
[1761358063259,62.22,193.64,193.61,2.58]
[1761358076582,4.6466,193.67,193.61,2.58]
[1761358076774,62.22,193.66,193.61,2.58]
[1761358085391,66.8669,193.66,193.59,0.89873712]
[1761358085803,62.22,193.66,193.57,11.02507633]
[1761358085979,6.99418893,193.64,193.57,11.02507633]
[1761358086184,144.75494549,193.64,193.57,4.6486]
[1761358086887,144.75494549,193.64,193.58,2.85]
[1761358090292,144.75494549,193.64,193.56,0.89896929]
[1761358090293,4.6476,193.63,193.56,0.89896929]
[1761358090587,62.22,193.62,193.56,0.89896929]
[1761358090792,2.34688893,193.6,193.52,6.37647633]
[1761358091092,2.34688893,193.6,193.52,0.89912026]
[1761358091994,6.99518893,193.6,193.52,0.89912026]
[1761358092893,6.99518893,193.6,193.53,2.77]
[1761358093400,4.6477,193.62,193.53,2.77]
[1761358093603,62.22,193.59,193.53,2.77]
[1761358093898,62.22,193.59,193.55,2.77]
[1761358104103,62.22,193.59,193.57,2.77]
[1761358104301,137.76075656,193.64,193.57,4.27304734]
[1761358104500,137.76075656,193.64,193.58,2.77]
[1761358104703,137.76075656,193.64,193.6,2.77]
[1761358106106,137.76075656,193.64,193.62,2.77]
[1761358111307,137.76075656,193.64,193.62,7.4174]
[1761358111509,137.76075656,193.64,193.63,2.77]
[1761358112413,63.72304734,193.69,193.64,7.4171]
[1761358114013,1.50304734,193.67,193.64,4.6471]
[1761358116405,1.50304734,193.67,193.62,4.6476]
[1761358116712,62.22,193.69,193.62,4.6476]
[1761358116713,1.50304734,193.65,193.62,4.6476]
[1761358116914,1.50304734,193.65,193.58,2.77]
[1761358117108,1.50304734,193.65,193.6,4.648]
[1761358117309,1.50304734,193.63,193.6,4.648]
[1761358117509,1.50304734,193.63,193.6,7.418]
[1761358120816,1.50304734,193.63,193.61,2.79]
[1761358121418,1.50304734,193.63,193.6,4.648]
[1761358121608,1.50304734,193.63,193.6,7.438]
[1761358125516,1.50304734,193.61,193.55,2.79]
[1761358125716,1.50304734,193.59,193.55,2.79]
[1761358127120,1.50304734,193.59,193.56,7.4389]
[1761358127316,1.50304734,193.59,193.57,2.79]
[1761358132225,1.50304734,193.61,193.57,2.79]
[1761358142622,1.50304734,193.63,193.58,2.61]
[1761358147026,6.15064734,193.63,193.58,2.61]
[1761358148028,1.50304734,193.61,193.55,2.67]
[1761358148332,1.50304734,193.61,193.52,2.4021676]
[1761358148333,1.50304734,193.57,193.52,3.56912026]
[1761358149030,1.50304734,193.57,193.53,2.67]
[1761358150937,1.50304734,193.59,193.53,2.67]
[1761358154840,6.99711548,193.6,193.53,2.67]
[1761358155434,4.6476,193.62,193.53,2.67]
[1761358157141,4.6476,193.62,193.54,2.67]
[1761358167050,4.6476,193.62,193.55,2.67]
[1761358170454,4.6476,193.62,193.53,6.37647633]
[1761358170455,2.34901548,193.63,193.56,2.67]
[1761358172050,2.34901548,193.63,193.58,2.67]
[1761358174663,4.6472,193.64,193.58,2.67]
[1761358175255,4.6472,193.64,193.55,6.37647633]
[1761358175256,62.22,193.65,193.6,2.67]
[1761358176756,62.22,193.65,193.61,2.67]
[1761358177158,4.6462,193.68,193.61,2.67]
[1761358180061,2.34901548,193.66,193.58,7.2385]
[1761358180360,2.34901548,193.66,193.59,2.59]
[1761358180959,6.99581548,193.66,193.59,2.59]
[1761358184957,2.34901548,193.66,193.6,2.59]
[1761358188463,4.6462,193.68,193.61,2.59]
[1761358193275,6.99521548,193.68,193.62,2.59]
[1761358195878,2.34901548,193.68,193.62,2.59]
[1761358198877,6.99541548,193.68,193.62,2.59]
[1761358199981,4.6466,193.67,193.62,2.59]
[1761358201180,4.6466,193.67,193.59,7.4383]
[1761358201370,4.6466,193.67,193.59,4.6483]
[1761358201576,4.6466,193.67,193.6,2.79]
[1761358206087,4.6466,193.67,193.6,4.648]
[1761358206293,4.6466,193.67,193.61,2.79]
[1761358210087,2.34901548,193.68,193.58,7.3985]
[1761358210287,2.34901548,193.65,193.55,2.75]
[1761358210498,64.56901548,193.65,193.55,2.75]
[1761358212092,64.56901548,193.65,193.57,2.75]
[1761358212093,4.6473,193.64,193.57,2.75]
[1761358216889,1.50292909,193.62,193.57,2.75]
[1761358222195,4.6473,193.64,193.57,2.75]
[1761358222396,1.50292909,193.63,193.57,2.75]
[1761358231707,1.50292909,193.63,193.58,2.75]
[1761358246104,1.50292909,193.59,193.55,2.85]
[1761358246402,1.50292909,193.57,193.55,2.85]
[1761358248508,1.50292909,193.59,193.55,2.85]
[1761358248811,1.50292909,193.61,193.55,2.85]
[1761358252399,120.18100239,193.63,193.55,2.85]
[1761358252600,1.50292909,193.61,193.55,2.85]
[1761358267827,1.50292909,193.61,193.56,2.83]
[1761358270330,62.22,193.62,193.57,2.83]
[1761358273029,66.8678,193.62,193.57,2.83]
[1761358273230,1.50292909,193.61,193.57,2.83]
[1761358278734,66.8678,193.62,193.57,2.83]
[1761358289739,4.648,193.61,193.57,2.83]
[1761358290037,4.648,193.61,193.55,2.83]
[1761358290739,64.56827919,193.62,193.55,2.83]
[1761358290740,4.6482,193.6,193.55,2.83]
[1761358290946,62.22,193.59,193.55,2.83]
[1761358303745,62.22,193.59,193.52,5.54902026]
[1761358303746,66.8685,193.59,193.52,8.16902026]
[1761358305445,4.649,193.57,193.52,0.89912026]
[1761358305643,64.56827919,193.59,193.49,2.62]
[1761358306045,64.56827919,193.59,193.5,2.62]
[1761358306245,4.6492,193.56,193.5,2.62]
[1761358306549,62.22,193.55,193.5,2.62]
[1761358308143,62.22,193.56,193.5,2.62]
[1761358309856,62.22,193.56,193.51,2.62]
[1761358310054,62.22,193.56,193.5,4.6503]
[1761358310353,62.22,193.56,193.49,0.89930614]
[1761358310853,62.22,193.56,193.5,2.62]
[1761358311457,62.22,193.56,193.51,2.62]
[1761358313657,4.649,193.57,193.51,2.62]
[1761358313857,66.889,193.57,193.51,2.62]
[1761358314548,4.649,193.57,193.51,2.62]
[1761358314856,66.889,193.57,193.51,2.62]
[1761358320270,3.7076766,193.56,193.51,2.62]
[1761358322275,66.889,193.57,193.51,2.62]
[1761358324467,66.889,193.57,193.5,4.6503]
[1761358325369,66.889,193.57,193.5,7.2803]
[1761358326870,3.70771027,193.56,193.5,7.2803]
[1761358327070,66.889,193.57,193.5,7.2803]
[1761358327279,3.70684307,193.56,193.5,7.2803]
[1761358327567,66.889,193.57,193.5,7.2803]
[1761358328471,3.70641359,193.56,193.5,7.2803]
[1761358333275,8.35561359,193.56,193.5,7.2803]
[1761358336779,8.35561359,193.56,193.5,2.63]
[1761358337586,4.6495,193.55,193.5,2.63]
[1761358338784,1.50404317,193.53,193.5,2.63]
[1761358349492,6.15354317,193.55,193.5,2.63]
[1761358350898,68.39294317,193.57,193.51,2.68]
[1761358351088,3.71322093,193.56,193.51,2.68]
[1761358351291,5.2172641,193.55,193.51,2.68]
[1761358351588,1.50404317,193.55,193.51,2.68]
[1761358351787,5.2172641,193.55,193.51,2.68]
[1761358352001,1.50404317,193.55,193.51,2.68]
[1761358352293,5.2172641,193.55,193.51,2.68]
[1761358352495,1.50404317,193.55,193.51,2.68]
[1761358352694,5.2172641,193.55,193.51,2.68]
[1761358352901,1.50404317,193.55,193.51,2.68]